[Event "Djerba Festival Blitz 2025"]
[Site "Djerba"]
[Date "2025.02.21"]
[Round "4.13"]
[White "Papaux, Steve"]
[Black "Marceil, Jean"]
[Result "1-0"]
[ECO "E01"]
[WhiteElo "2204"]
[BlackElo "1901"]
[PlyCount "57"]
[EventDate "2025.02.15"]
[EventType "swiss"]
[EventCountry "TUN"]
[TimeControl "180+3"]

1. d4 {[%emt 0:00:05]} d5 {[%emt 0:00:03]} 2. c4 {[%emt 0:00:02]} e6 {[%emt 0:00:02]} 3. Nf3 {[%emt 0:00:03]} Nf6 {[%emt 0:00:03]} 4. g3 {[%emt 0:00:02]} c6 {[%emt 0:00:02]} 5. Bg2 {[%emt 0:00:03]} Bd6 {[%emt 0:00:07]} 6. Nbd2 {[%emt 0:00:03]} Ne4 {[%emt 0:00:04]} 7. Nxe4 {[%emt 0:00:11]} dxe4 {[%emt 0:00:03]} 8. Ne5 {[%emt 0:00:06]} f5 {[%emt 0:00:12]} 9. Bf4 {[%emt 0:00:13]} Nd7 {[%emt 0:00:19]} 10. Nxc6 {[%emt 0:00:24]} bxc6 {[%emt 0:00:10]} 11. Bxd6 {[%emt 0:00:03]} Qa5+ {[%emt 0:00:04]} 12. b4 {[%emt 0:00:06]} Qa6 {[%emt 0:00:22]} 13. Qb3 {[%emt 0:00:08]} Nb6 {[%emt 0:00:33]} 14. b5 {[%emt 0:00:04]} cxb5 {[%emt 0:00:08]} 15. Qxb5+ {[%emt 0:00:05]} Qxb5 16. cxb5 {[%emt 0:00:03]} Kd7 {[%emt 0:00:14]} 17. Be5 {[%emt 0:00:12]} Rg8 {[%emt 0:00:03]} 18. e3 {[%emt 0:00:05]} Nd5 {[%emt 0:00:08]} 19. Kd2 {[%emt 0:00:07]} Bb7 {[%emt 0:00:02]} 20. Rhc1 {[%emt 0:00:06]} Rac8 {[%emt 0:00:02]} 21. Rc5 {[%emt 0:00:09]} Nb6 {[%emt 0:00:20]} 22. Rac1 {[%emt 0:00:07]} Na8 {[%emt 0:00:32]} 23. Rxc8 {[%emt 0:00:11]} Rxc8 {[%emt 0:00:02]} 24. Rxc8 {[%emt 0:00:02]} Bxc8 {[%emt 0:00:06]} 25. Bxg7 {[%emt 0:00:03]} a6 {[%emt 0:00:09]} 26. Bf1 {[%emt 0:00:04]} Nc7 {[%emt 0:00:03]} 27. a4 {[%emt 0:00:10]} axb5 {[%emt 0:00:03]} 28. axb5 {[%emt 0:00:01]} Nd5 {[%emt 0:00:08]} 29. Be5 {[%emt 0:00:13]} 1-0

[Event "Djerba Festival Blitz 2025"]
[Site "Djerba"]
[Date "2025.02.21"]
[Round "4.15"]
[White "Rekik Ismail"]
[Black "Tahir, Abderrahmane"]
[Result "0-1"]
[ECO "E68"]
[WhiteElo "2006"]
[BlackElo "1891"]
[PlyCount "92"]
[EventDate "2025.02.15"]
[EventType "swiss"]
[EventCountry "TUN"]
[TimeControl "180+3"]

1. c4 {[%emt 0:00:04]} Nf6 {[%emt 0:03:06]} 2. Nc3 g6 {[%emt 0:00:00]} 3. g3 {[%emt 0:00:04]} Bg7 {[%emt 0:00:00]} 4. d4 {[%emt 0:03:07]} d6 5. Bg2 {[%emt 0:00:03]} O-O 6. Nf3 {[%emt 0:00:03]} Nbd7 7. O-O {[%emt 0:00:03]} e5 8. e4 {[%emt 0:00:03]} c6 {[%emt 0:00:21]} 9. Re1 {[%emt 0:00:03]} Re8 10. b3 {[%emt 0:00:03]} Qc7 {[%emt 0:00:06]} 11. Bb2 {[%emt 0:00:03]} exd4 12. Nxd4 {[%emt 0:00:03]} Nc5 13. Rc1 {[%emt 0:00:03]} a5 {[%emt 0:00:09]} 14. Qd2 {[%emt 0:00:03]} Nfd7 {[%emt 0:00:03]} 15. h3 {[%emt 0:00:03]} Ne5 {[%emt 0:00:03]} 16. Re3 {[%emt 0:00:03]} h5 {[%emt 0:00:03]} 17. f4 {[%emt 0:00:03]} Ned3 {[%emt 0:00:03]} 18. Rxd3 {[%emt 0:00:03]} Nxd3 {[%emt 0:00:03]} 19. Qxd3 {[%emt 0:00:03]} Qb6 {[%emt 0:00:03]} 20. Na4 {[%emt 0:00:03]} Qa7 {[%emt 0:00:03]} 21. c5 {[%emt 0:00:03]} dxc5 {[%emt 0:00:03]} 22. Nxc5 {[%emt 0:00:03]} Rd8 {[%emt 0:00:03]} 23. e5 {[%emt 0:00:03]} Bf8 {[%emt 0:00:03]} 24. Ne4 {[%emt 0:00:03]} Bf5 {[%emt 0:00:03]} 25. Qe3 {[%emt 0:00:03]} Bxe4 {[%emt 0:00:03]} 26. Qxe4 {[%emt 0:00:03]} Bc5 {[%emt 0:00:03]} 27. Rd1 {[%emt 0:00:03]} Rxd4 {[%emt 0:00:03]} 28. Rxd4 {[%emt 0:00:03]} Rd8 {[%emt 0:00:03]} 29. e6 {[%emt 0:00:03]} Bxd4+ {[%emt 0:00:03]} 30. Kh2 {[%emt 0:00:03]} Bxb2 {[%emt 0:00:03]} 31. exf7+ {[%emt 0:00:03]} Kxf7 {[%emt 0:00:03]} 32. f5 {[%emt 0:00:03]} Bf6 {[%emt 0:00:03]} 33. Qe6+ {[%emt 0:00:03]} Kg7 34. fxg6 {[%emt 0:00:03]} b5 {[%emt 0:00:06]} 35. Qf5 {[%emt 0:00:03]} h4 {[%emt 0:00:03]} 36. Qh5 {[%emt 0:00:03]} hxg3+ {[%emt 0:00:03]} 37. Kxg3 {[%emt 0:00:03]} Qc7+ {[%emt 0:00:03]} 38. Kf3 {[%emt 0:00:03]} Rh8 {[%emt 0:00:03]} 39. Qf5 {[%emt 0:00:03]} Rh4 {[%emt 0:00:03]} 40. Bf1 {[%emt 0:00:03]} Qe7 {[%emt 0:00:03]} 41. Bd3 {[%emt 0:00:03]} Rd4 {[%emt 0:00:03]} 42. Bc2 {[%emt 0:00:03]} Qe1 {[%emt 0:00:03]} 43. Qh5 {[%emt 0:00:00]} Qf1+ {[%emt 0:00:03]} 44. Ke3 {[%emt 0:00:06]} Qf4+ {[%emt 0:00:03]} 45. Ke2 {[%emt 0:00:03]} Rd2+ 46. Ke1 {[%emt 0:00:03]} Qf2# {[%emt 0:00:00]} 0-1

[Event "Djerba Festival Blitz 2025"]
[Site "Djerba"]
[Date "2025.02.21"]
[Round "4.16"]
[White "Mendil, Yacine"]
[Black "Gemelli, Romain"]
[Result "0-1"]
[ECO "A14"]
[WhiteElo "1699"]
[BlackElo "2203"]
[PlyCount "90"]
[EventDate "2025.02.15"]
[EventType "swiss"]
[EventCountry "TUN"]
[TimeControl "180+3"]

1. Nf3 {[%emt 0:00:04]} Nf6 {[%emt 0:00:03]} 2. g3 {[%emt 0:00:03]} d5 {[%emt 0:00:03]} 3. Bg2 {[%emt 0:00:03]} e6 {[%emt 0:00:02]} 4. b3 {[%emt 0:00:03]} c5 {[%emt 0:00:03]} 5. Bb2 {[%emt 0:00:02]} Be7 {[%emt 0:00:03]} 6. O-O {[%emt 0:00:04]} O-O {[%emt 0:00:05]} 7. d3 {[%emt 0:00:05]} Nc6 {[%emt 0:00:02]} 8. Nbd2 {[%emt 0:00:02]} b6 {[%emt 0:00:02]} 9. c4 {[%emt 0:00:03]} Bb7 {[%emt 0:00:03]} 10. cxd5 {[%emt 0:00:04]} exd5 {[%emt 0:00:03]} 11. a3 {[%emt 0:00:05]} Re8 {[%emt 0:00:04]} 12. Rc1 {[%emt 0:00:04]} h6 {[%emt 0:00:03]} 13. Re1 {[%emt 0:00:08]} Bd6 {[%emt 0:00:09]} 14. Nf1 {[%emt 0:00:02]} Qd7 {[%emt 0:00:16]} 15. Qd2 {[%emt 0:00:07]} d4 {[%emt 0:00:03]} 16. Red1 {[%emt 0:00:21]} Na5 {[%emt 0:00:06]} 17. Qc2 {[%emt 0:00:07]} Bd5 {[%emt 0:00:03]} 18. N1d2 {[%emt 0:00:09]} Rxe2 {[%emt 0:00:03]} 19. Re1 {[%emt 0:00:14]} Rae8 {[%emt 0:02:44]} 20. Rxe2 {[%emt 0:00:05]} Rxe2 {[%emt 0:00:00]} 21. Qd1 {[%emt 0:00:05]} Re8 {[%emt 0:00:00]} 22. Nc4 {[%emt 0:00:03]} Nxc4 {[%emt 0:00:00]} 23. bxc4 {[%emt 0:00:10]} Bc6 {[%emt 0:00:00]} 24. Qd2 {[%emt 0:00:07]} Qb7 {[%emt 0:00:00]} 25. Nh4 {[%emt 0:00:15]} Bxg2 {[%emt 0:00:00]} 26. Nxg2 {[%emt 0:00:03]} Qf3 {[%emt 0:00:00]} 27. Re1 {[%emt 0:00:19]} Rxe1+ {[%emt 0:00:00]} 28. Nxe1 {[%emt 0:00:09]} Qh5 {[%emt 0:00:00]} 29. h4 {[%emt 0:00:23]} Nd7 {[%emt 0:00:00]} 30. Bc1 {[%emt 0:00:04]} Ne5 {[%emt 0:00:00]} 31. Kg2 {[%emt 0:00:26]} Qf5 {[%emt 0:00:00]} 32. Qf4 {[%emt 0:00:19]} Qxf4 {[%emt 0:00:00]} 33. Bxf4 {[%emt 0:00:02]} f6 {[%emt 0:00:00]} 34. Bxe5 {[%emt 0:00:07]} Bxe5 {[%emt 0:00:00]} 35. f4 {[%emt 0:00:04]} Bd6 {[%emt 0:00:00]} 36. Nf3 {[%emt 0:00:03]} a6 {[%emt 0:00:00]} 37. Nd2 {[%emt 0:00:20]} b5 {[%emt 0:00:00]} 38. cxb5 {[%emt 0:00:00]} axb5 {[%emt 0:00:00]} 39. Ne4 {[%emt 0:00:00]} Be7 {[%emt 0:00:00]} 40. Kf2 {[%emt 0:00:00]} c4 {[%emt 0:00:00]} 41. dxc4 {[%emt 0:00:04]} bxc4 {[%emt 0:00:00]} 42. a4 {[%emt 0:00:01]} Bb4 {[%emt 0:00:00]} 43. Ke2 {[%emt 0:00:04]} Kf7 {[%emt 0:00:01]} 44. Nd2 {[%emt 0:00:03]} Bxd2 {[%emt 0:00:08]} 45. Kxd2 {[%emt 0:00:02]} Ke6 {[%emt 0:00:01]} 0-1

[Event "Djerba Festival Blitz 2025"]
[Site "Djerba"]
[Date "2025.02.21"]
[Round "4.17"]
[White "Nassr, Lina"]
[Black "Skhiri Youssef"]
[Result "1-0"]
[ECO "E61"]
[WhiteElo "1934"]
[BlackElo "1808"]
[PlyCount "67"]
[EventDate "2025.02.15"]
[EventType "swiss"]
[EventCountry "TUN"]
[TimeControl "180+3"]

1. d4 {[%emt 0:00:03]} Nf6 {[%emt 0:00:03]} 2. Nf3 {[%emt 0:00:02]} g6 {[%emt 0:00:01]} 3. e3 {[%emt 0:00:02]} Bg7 {[%emt 0:00:02]} 4. Be2 {[%emt 0:00:02]} O-O {[%emt 0:00:02]} 5. c4 {[%emt 0:00:01]} d6 {[%emt 0:00:02]} 6. O-O {[%emt 0:00:03]} Nbd7 {[%emt 0:00:05]} 7. Nc3 {[%emt 0:00:04]} e5 {[%emt 0:00:03]} 8. b4 {[%emt 0:00:05]} exd4 {[%emt 0:00:22]} 9. exd4 {[%emt 0:00:06]} c5 {[%emt 0:00:02]} 10. bxc5 {[%emt 0:00:17]} dxc5 {[%emt 0:00:02]} 11. Bb2 {[%emt 0:00:14]} cxd4 {[%emt 0:00:06]} 12. Nxd4 {[%emt 0:00:03]} Nc5 {[%emt 0:00:11]} 13. Ndb5 {[%emt 0:00:46]} Nfe4 {[%emt 0:00:52]} 14. Nxe4 {[%emt 0:00:18]} Nxe4 {[%emt 0:00:08]} 15. Bxg7 {[%emt 0:00:05]} Kxg7 {[%emt 0:00:03]} 16. Qc2 {[%emt 0:00:05]} Bf5 {[%emt 0:00:20]} 17. Bd3 {[%emt 0:00:06]} Re8 {[%emt 0:00:29]} 18. Rfe1 {[%emt 0:00:13]} Qf6 {[%emt 0:00:52]} 19. Nc7 {[%emt 0:00:20]} Nxf2 {[%emt 0:00:10]} 20. Qxf2 {[%emt 0:00:12]} Rxe1+ {[%emt 0:00:04]} 21. Rxe1 {[%emt 0:00:05]} Rc8 {[%emt 0:00:03]} 22. Bxf5 {[%emt 0:00:03]} Rxc7 {[%emt 0:00:02]} 23. Bd3 {[%emt 0:00:08]} Qc3 {[%emt 0:00:02]} 24. Bf1 {[%emt 0:00:04]} Qa5 {[%emt 0:00:02]} 25. Qd4+ {[%emt 0:00:03]} f6 {[%emt 0:00:07]} 26. Qe4 {[%emt 0:00:10]} Rd7 {[%emt 0:00:03]} 27. Qe8 {[%emt 0:00:08]} Qb6+ {[%emt 0:00:03]} 28. Kh1 {[%emt 0:00:03]} Qd6 {[%emt 0:00:02]} 29. Qe2 {[%emt 0:00:04]} a6 {[%emt 0:00:02]} 30. Qf2 {[%emt 0:00:05]} Qb4 {[%emt 0:00:02]} 31. c5 {[%emt 0:00:03]} Rc7 {[%emt 0:00:04]} 32. Rc1 {[%emt 0:00:03]} b6 {[%emt 0:00:03]} 33. Qe1 {[%emt 0:00:05]} Qb5 {[%emt 0:00:04]} 34. Bxb5 {[%emt 0:00:03]} 1-0

[Event "Djerba Festival Blitz 2025"]
[Site "Djerba"]
[Date "2025.02.21"]
[Round "4.18"]
[White "Saidi, Bouziane"]
[Black "Achour, Mohamed Anis"]
[Result "1-0"]
[ECO "E60"]
[WhiteElo "1710"]
[BlackElo "2066"]
[PlyCount "97"]
[EventDate "2025.02.15"]
[EventType "swiss"]
[EventCountry "TUN"]
[TimeControl "180+3"]

1. Nf3 {[%emt 0:00:04]} Nf6 {[%emt 0:00:03]} 2. g3 {[%emt 0:00:02]} g6 {[%emt 0:00:07]} 3. b3 {[%emt 0:00:02]} Bg7 {[%emt 0:00:03]} 4. Bb2 {[%emt 0:00:02]} d6 {[%emt 0:00:07]} 5. d4 {[%emt 0:00:03]} O-O {[%emt 0:00:03]} 6. Bg2 {[%emt 0:00:02]} Nbd7 {[%emt 0:00:08]} 7. O-O {[%emt 0:00:05]} c5 {[%emt 0:00:08]} 8. c4 {[%emt 0:00:02]} Rb8 {[%emt 0:00:09]} 9. Nc3 {[%emt 0:00:04]} b6 {[%emt 0:00:11]} 10. d5 {[%emt 0:00:05]} a6 {[%emt 0:00:16]} 11. a4 {[%emt 0:00:04]} Re8 {[%emt 0:00:15]} 12. e4 {[%emt 0:00:02]} e6 {[%emt 0:00:05]} 13. Qd2 {[%emt 0:00:21]} exd5 {[%emt 0:00:08]} 14. exd5 {[%emt 0:00:02]} Ne5 {[%emt 0:00:16]} 15. Nxe5 {[%emt 0:00:03]} Rxe5 {[%emt 0:00:03]} 16. Rae1 {[%emt 0:00:03]} Re8 {[%emt 0:00:16]} 17. Rxe8+ {[%emt 0:00:03]} Qxe8 {[%emt 0:00:02]} 18. Re1 {[%emt 0:00:02]} Qf8 {[%emt 0:00:10]} 19. h3 {[%emt 0:00:09]} Bd7 {[%emt 0:00:06]} 20. Kh2 {[%emt 0:00:07]} b5 {[%emt 0:00:19]} 21. cxb5 {[%emt 0:00:07]} axb5 {[%emt 0:00:02]} 22. a5 {[%emt 0:00:06]} b4 {[%emt 0:00:16]} 23. Nd1 {[%emt 0:00:06]} Ra8 {[%emt 0:00:03]} 24. Ne3 {[%emt 0:00:07]} Rxa5 {[%emt 0:00:05]} 25. Nc4 {[%emt 0:00:04]} Ra8 {[%emt 0:00:04]} 26. Qf4 {[%emt 0:00:14]} Re8 {[%emt 0:00:25]} 27. Ra1 {[%emt 0:00:29]} Nh5 {[%emt 0:00:12]} 28. Qd2 {[%emt 0:00:21]} Bb5 {[%emt 0:00:14]} 29. Bxg7 {[%emt 0:00:27]} Nxg7 {[%emt 0:00:02]} 30. Ne3 {[%emt 0:00:09]} h5 {[%emt 0:00:09]} 31. Qb2 {[%emt 0:00:03]} Qe7 {[%emt 0:00:06]} 32. h4 {[%emt 0:00:14]} Qe5 {[%emt 0:00:02]} 33. Qxe5 {[%emt 0:00:05]} Rxe5 {[%emt 0:00:02]} 34. Ra8+ {[%emt 0:00:06]} Kh7 {[%emt 0:00:02]} 35. Rb8 {[%emt 0:00:03]} Bd3 {[%emt 0:00:03]} 36. Rd8 {[%emt 0:00:06]} Be4 {[%emt 0:00:03]} 37. Rxd6 {[%emt 0:00:06]} Bxg2 {[%emt 0:00:03]} 38. Kxg2 {[%emt 0:00:02]} Nf5 {[%emt 0:00:03]} 39. Nxf5 {[%emt 0:00:02]} Rxf5 {[%emt 0:00:02]} 40. Rd7 {[%emt 0:00:03]} Kg7 {[%emt 0:00:02]} 41. f4 {[%emt 0:00:05]} Kf6 {[%emt 0:00:04]} 42. Kf3 {[%emt 0:00:02]} Kg7 {[%emt 0:00:04]} 43. Ke4 {[%emt 0:00:03]} Rf6 {[%emt 0:00:03]} 44. Rc7 {[%emt 0:00:04]} Ra6 {[%emt 0:00:04]} 45. Rxc5 {[%emt 0:00:37]} Ra3 {[%emt 0:00:02]} 46. d6 {[%emt 0:00:00]} Rxb3 {[%emt 0:00:02]} 47. d7 {[%emt 0:00:00]} Rc3 {[%emt 0:00:06]} 48. Rxc3 {[%emt 0:00:00]} bxc3 {[%emt 0:00:02]} 49. d8=Q {[%emt 0:00:00]} 1-0

[Event "Djerba Festival Blitz 2025"]
[Site "Djerba"]
[Date "2025.02.21"]
[Round "4.19"]
[White "Kaabi, Iheb"]
[Black "Dauvois, Theo"]
[Result "1-0"]
[ECO "B21"]
[WhiteElo "1810"]
[BlackElo "1663"]
[PlyCount "81"]
[EventDate "2025.02.15"]
[EventType "swiss"]
[EventCountry "TUN"]
[TimeControl "180+3"]

1. e4 {[%emt 0:00:03]} c5 {[%emt 0:00:02]} 2. d4 {[%emt 0:00:02]} cxd4 {[%emt 0:00:03]} 3. c3 {[%emt 0:00:02]} dxc3 {[%emt 0:00:04]} 4. Nxc3 {[%emt 0:00:02]} Nc6 {[%emt 0:00:03]} 5. Bc4 {[%emt 0:00:03]} a6 {[%emt 0:00:05]} 6. Nf3 {[%emt 0:00:04]} e6 {[%emt 0:00:02]} 7. Bf4 {[%emt 0:00:02]} d6 {[%emt 0:00:20]} 8. O-O {[%emt 0:00:03]} Nf6 {[%emt 0:00:04]} 9. Qe2 {[%emt 0:00:02]} e5 {[%emt 0:00:10]} 10. Bg5 {[%emt 0:00:04]} Be7 {[%emt 0:00:02]} 11. Rfd1 {[%emt 0:00:03]} O-O {[%emt 0:00:06]} 12. h3 {[%emt 0:00:04]} Qc7 {[%emt 0:00:08]} 13. Rac1 {[%emt 0:00:03]} Be6 {[%emt 0:00:12]} 14. Bb3 {[%emt 0:00:03]} Bxb3 {[%emt 0:00:08]} 15. axb3 {[%emt 0:00:02]} Rfd8 {[%emt 0:00:03]} 16. Nd5 {[%emt 0:00:10]} Qd7 {[%emt 0:00:16]} 17. Nb6 {[%emt 0:00:08]} Qe6 {[%emt 0:00:15]} 18. Nxa8 {[%emt 0:00:04]} Rxa8 {[%emt 0:00:02]} 19. Rd3 {[%emt 0:00:18]} h6 {[%emt 0:00:02]} 20. Bxf6 {[%emt 0:00:05]} Bxf6 {[%emt 0:00:03]} 21. Rcd1 {[%emt 0:00:03]} Be7 {[%emt 0:00:04]} 22. Nd2 {[%emt 0:00:23]} Nd4 {[%emt 0:00:06]} 23. Qh5 {[%emt 0:00:17]} Rc8 {[%emt 0:00:14]} 24. Rc3 {[%emt 0:00:36]} Rd8 {[%emt 0:00:06]} 25. Kh1 {[%emt 0:00:22]} Bg5 {[%emt 0:00:06]} 26. Nf3 {[%emt 0:00:08]} Be7 {[%emt 0:00:23]} 27. Nxd4 {[%emt 0:00:06]} exd4 {[%emt 0:00:04]} 28. Rc7 {[%emt 0:00:16]} Bf6 {[%emt 0:00:07]} 29. Qd5 {[%emt 0:00:05]} Qxd5 {[%emt 0:00:05]} 30. exd5 {[%emt 0:00:03]} Re8 {[%emt 0:00:05]} 31. Rxb7 {[%emt 0:00:13]} Re2 {[%emt 0:00:02]} 32. Rb6 {[%emt 0:00:06]} Rxb2 {[%emt 0:00:04]} 33. Rxd6 {[%emt 0:00:04]} Rxb3 {[%emt 0:00:06]} 34. Rxa6 {[%emt 0:00:02]} d3 {[%emt 0:00:06]} 35. d6 {[%emt 0:00:08]} Bg5 {[%emt 0:00:25]} 36. d7 {[%emt 0:00:07]} Kh7 {[%emt 0:00:13]} 37. Rd6 {[%emt 0:00:09]} d2 {[%emt 0:00:12]} 38. R6xd2 {[%emt 0:00:12]} Rb8 {[%emt 0:00:10]} 39. g3 {[%emt 0:00:04]} Bd8 {[%emt 0:00:07]} 40. Kg2 {[%emt 0:00:03]} g6 {[%emt 0:00:05]} 41. Rc2 {[%emt 0:00:03]} 1-0

[Event "Djerba Festival Blitz 2025"]
[Site "Djerba"]
[Date "2025.02.21"]
[Round "4.20"]
[White "Hafsa, Yessine"]
[Black "Amrane, Abdellah"]
[Result "0-1"]
[ECO "B22"]
[WhiteElo "1503"]
[BlackElo "2021"]
[PlyCount "72"]
[EventDate "2025.02.15"]
[EventType "swiss"]
[EventCountry "TUN"]
[TimeControl "180+3"]

1. e4 {[%emt 0:00:03]} c5 {[%emt 0:00:03]} 2. c3 {[%emt 0:00:02]} Nf6 {[%emt 0:00:11]} 3. e5 {[%emt 0:00:02]} Nd5 {[%emt 0:00:02]} 4. d4 {[%emt 0:00:02]} cxd4 {[%emt 0:00:02]} 5. Nf3 {[%emt 0:00:02]} e6 {[%emt 0:00:04]} 6. cxd4 {[%emt 0:00:14]} Nc6 {[%emt 0:00:02]} 7. Bc4 {[%emt 0:00:02]} Nb6 {[%emt 0:00:03]} 8. Bb5 {[%emt 0:00:04]} d6 {[%emt 0:00:11]} 9. Nc3 {[%emt 0:00:18]} a6 {[%emt 0:00:06]} 10. Bxc6+ {[%emt 0:00:04]} bxc6 {[%emt 0:00:02]} 11. O-O {[%emt 0:00:16]} Be7 {[%emt 0:00:02]} 12. Bf4 {[%emt 0:00:13]} d5 {[%emt 0:00:12]} 13. Na4 {[%emt 0:00:25]} Nxa4 {[%emt 0:00:03]} 14. Qxa4 {[%emt 0:00:02]} Bd7 {[%emt 0:00:02]} 15. Qc2 {[%emt 0:00:14]} O-O {[%emt 0:00:07]} 16. Nd2 {[%emt 0:00:11]} Rb8 {[%emt 0:00:36]} 17. Nb3 {[%emt 0:00:01]} Qb6 {[%emt 0:00:01]} 18. Be3 {[%emt 0:00:13]} Rfc8 {[%emt 0:00:02]} 19. Rab1 {[%emt 0:00:06]} a5 {[%emt 0:00:18]} 20. Nc5 {[%emt 0:00:02]} Be8 {[%emt 0:01:54]} 21. f4 {[%emt 0:00:18]} Bxc5 {[%emt 0:00:00]} 22. dxc5 {[%emt 0:00:02]} Qb4 {[%emt 0:00:00]} 23. Rfd1 {[%emt 0:00:12]} f6 {[%emt 0:00:00]} 24. Bd4 {[%emt 0:00:19]} Bg6 {[%emt 0:00:00]} 25. Qf2 {[%emt 0:00:07]} Bxb1 {[%emt 0:00:00]} 26. Rxb1 {[%emt 0:00:02]} f5 {[%emt 0:00:00]} 27. h3 {[%emt 0:00:05]} Qc4 {[%emt 0:00:00]} 28. b3 {[%emt 0:00:13]} Qd3 {[%emt 0:00:00]} 29. Rb2 {[%emt 0:00:05]} a4 {[%emt 0:00:00]} 30. Rd2 {[%emt 0:00:05]} Qb1+ {[%emt 0:00:00]} 31. Kh2 {[%emt 0:00:05]} axb3 {[%emt 0:00:00]} 32. axb3 {[%emt 0:00:02]} Rxb3 {[%emt 0:00:00]} 33. g4 {[%emt 0:00:03]} Ra8 {[%emt 0:00:00]} 34. gxf5 {[%emt 0:00:06]} Raa3 {[%emt 0:00:00]} 35. fxe6 {[%emt 0:00:11]} Rxh3+ {[%emt 0:00:00]} 36. Kg2 {[%emt 0:00:01]} Qh1# {[%emt 0:00:00]} 0-1

[Event "Djerba Festival Blitz 2025"]
[Site "Djerba"]
[Date "2025.02.21"]
[Round "4.22"]
[White "Ajbara Jamal"]
[Black "Minde, Baptiste"]
[Result "0-1"]
[ECO "A43"]
[WhiteElo "1898"]
[BlackElo "1896"]
[PlyCount "62"]
[EventDate "2025.02.15"]
[EventType "swiss"]
[EventCountry "TUN"]
[TimeControl "180+3"]

1. d4 {[%emt 0:00:04]} Nf6 {[%emt 0:00:03]} 2. Nf3 {[%emt 0:00:04]} c5 {[%emt 0:00:03]} 3. d5 {[%emt 0:00:04]} b5 {[%emt 0:00:04]} 4. b3 {[%emt 0:00:12]} e6 {[%emt 0:00:05]} 5. c4 {[%emt 0:00:03]} Bb7 {[%emt 0:00:07]} 6. dxe6 {[%emt 0:00:12]} fxe6 {[%emt 0:00:02]} 7. Bb2 {[%emt 0:00:06]} bxc4 {[%emt 0:00:06]} 8. bxc4 {[%emt 0:00:04]} d5 {[%emt 0:00:03]} 9. cxd5 {[%emt 0:00:12]} exd5 {[%emt 0:00:07]} 10. e3 {[%emt 0:00:03]} Qb6 {[%emt 0:00:21]} 11. Qc2 {[%emt 0:00:18]} Nbd7 {[%emt 0:00:09]} 12. Be2 {[%emt 0:00:05]} Bd6 {[%emt 0:00:12]} 13. O-O {[%emt 0:00:04]} O-O {[%emt 0:00:03]} 14. Rd1 {[%emt 0:00:07]} Rab8 {[%emt 0:00:12]} 15. Nc3 {[%emt 0:00:08]} d4 {[%emt 0:00:05]} 16. Na4 {[%emt 0:00:12]} Qa5 {[%emt 0:00:28]} 17. exd4 {[%emt 0:00:11]} Be4 {[%emt 0:00:15]} 18. Qc4+ {[%emt 0:00:38]} Bd5 {[%emt 0:00:02]} 19. Qa6 {[%emt 0:00:07]} Qxa6 {[%emt 0:00:06]} 20. Bxa6 {[%emt 0:00:02]} Rb4 {[%emt 0:00:12]} 21. dxc5 {[%emt 0:00:10]} Rxa4 {[%emt 0:00:03]} 22. Bxf6 {[%emt 0:00:05]} Nxf6 {[%emt 0:00:04]} 23. Rxd5 {[%emt 0:00:04]} Nxd5 {[%emt 0:00:03]} 24. Bb5 {[%emt 0:00:10]} Ra5 {[%emt 0:00:10]} 25. cxd6 {[%emt 0:00:18]} Rxb5 {[%emt 0:00:04]} 26. h3 {[%emt 0:00:14]} Rd8 {[%emt 0:00:04]} 27. Nd4 {[%emt 0:00:02]} Rb6 {[%emt 0:00:08]} 28. Nf5 {[%emt 0:00:03]} g6 {[%emt 0:00:12]} 29. Ne7+ {[%emt 0:00:10]} Nxe7 {[%emt 0:00:03]} 30. dxe7 {[%emt 0:00:02]} Re8 {[%emt 0:00:02]} 31. Re1 {[%emt 0:00:03]} Rb7 {[%emt 0:00:02]} 0-1

[Event "Djerba Festival Blitz 2025"]
[Site "Djerba"]
[Date "2025.02.21"]
[Round "4.23"]
[White "Sazlik, Mucahit"]
[Black "Doucet, Pierre-Alois"]
[Result "0-1"]
[ECO "D43"]
[WhiteElo "1672"]
[BlackElo "2027"]
[PlyCount "78"]
[EventDate "2025.02.15"]
[EventType "swiss"]
[EventCountry "TUN"]
[TimeControl "180+3"]

1. d4 {[%emt 0:00:03]} Nf6 {[%emt 0:00:02]} 2. c4 {[%emt 0:00:03]} e6 {[%emt 0:00:02]} 3. Nc3 {[%emt 0:00:02]} Bb4 {[%emt 0:00:01]} 4. Qc2 {[%emt 0:00:03]} d5 {[%emt 0:00:02]} 5. Bg5 {[%emt 0:00:03]} h6 {[%emt 0:00:03]} 6. Bxf6 {[%emt 0:00:03]} Qxf6 {[%emt 0:00:02]} 7. e3 {[%emt 0:00:02]} O-O {[%emt 0:00:08]} 8. Nf3 {[%emt 0:00:03]} c6 {[%emt 0:00:03]} 9. Bd3 {[%emt 0:00:15]} Nd7 {[%emt 0:00:05]} 10. O-O {[%emt 0:00:09]} dxc4 {[%emt 0:00:14]} 11. Bxc4 {[%emt 0:00:03]} Nb6 {[%emt 0:00:02]} 12. Bb3 {[%emt 0:00:11]} Nd5 {[%emt 0:00:17]} 13. a3 {[%emt 0:00:07]} Ba5 {[%emt 0:00:12]} 14. Rad1 {[%emt 0:00:47]} Qe7 {[%emt 0:00:07]} 15. Ba2 {[%emt 0:00:07]} Nxc3 {[%emt 0:00:11]} 16. bxc3 {[%emt 0:00:11]} Qxa3 {[%emt 0:00:02]} 17. Bb1 {[%emt 0:00:03]} f5 {[%emt 0:00:17]} 18. c4 {[%emt 0:00:19]} Bc7 {[%emt 0:00:14]} 19. c5 {[%emt 0:00:02]} Qa5 {[%emt 0:00:36]} 20. Ba2 {[%emt 0:00:04]} Bd8 {[%emt 0:00:09]} 21. Ra1 {[%emt 0:00:05]} Qc7 {[%emt 0:00:02]} 22. Ne5 {[%emt 0:00:13]} Bf6 {[%emt 0:00:05]} 23. Qxf5 {[%emt 0:00:05]} Bxe5 {[%emt 0:00:21]} 24. Qxe5 {[%emt 0:00:02]} Qxe5 {[%emt 0:00:02]} 25. dxe5 {[%emt 0:00:03]} b6 {[%emt 0:00:06]} 26. Rfc1 {[%emt 0:00:13]} b5 {[%emt 0:00:04]} 27. Rd1 {[%emt 0:00:05]} Rf7 {[%emt 0:00:30]} 28. Rd6 {[%emt 0:00:03]} Rc7 {[%emt 0:00:05]} 29. Bxe6+ {[%emt 0:00:05]} Bxe6 {[%emt 0:00:02]} 30. Rxe6 {[%emt 0:00:03]} Kf7 {[%emt 0:00:01]} 31. Rd6 {[%emt 0:00:03]} a5 {[%emt 0:00:02]} 32. f4 {[%emt 0:00:06]} a4 {[%emt 0:00:02]} 33. f5 {[%emt 0:00:04]} a3 {[%emt 0:00:04]} 34. e6+ {[%emt 0:00:21]} Kf6 {[%emt 0:00:03]} 35. g4 {[%emt 0:00:02]} b4 {[%emt 0:00:04]} 36. Rd7 {[%emt 0:00:05]} Rxd7 {[%emt 0:00:04]} 37. exd7 {[%emt 0:00:02]} Rd8 {[%emt 0:00:02]} 38. Rb1 {[%emt 0:00:04]} a2 {[%emt 0:00:02]} 39. Rb2 {[%emt 0:00:03]} a1=Q+ {[%emt 0:00:05]} 0-1